[Event "Late-Titled-Tuesday-Blitz-June-18-2024"]
[Site "Chess.com"]
[Date "2024.06.18"]
[Round "3"]
[White "FuenfgegenWilly"]
[Black "Losingexperience"]
[Result "1-0"]
[WhiteElo "2518"]
[BlackElo "2730"]
[TimeControl "180+1"]
[EndTime "14:31:45 PDT"]
[Termination "FuenfgegenWilly won on time"]

1. e4 {[%clk 0:03:00.9]} 1... c5 {[%clk 0:02:59.5]} 2. Nc3 {[%clk 0:03:01.2]}
2... Nc6 {[%clk 0:02:59.1]} 3. f4 {[%clk 0:03:01.7]} 3... g6 {[%clk 0:02:58.7]}
4. Nf3 {[%clk 0:03:02.1]} 4... d6 {[%clk 0:02:58.6]} 5. Bb5 {[%clk 0:03:02.5]}
5... Bd7 {[%clk 0:02:57.4]} 6. d3 {[%clk 0:03:01.2]} 6... Bg7 {[%clk 0:02:57.1]}
7. O-O {[%clk 0:03:00.9]} 7... Nf6 {[%clk 0:02:56.6]} 8. Qe1 {[%clk 0:03:00.8]}
8... O-O {[%clk 0:02:55.3]} 9. Qh4 {[%clk 0:03:00.6]} 9... e6 {[%clk 0:02:51.2]}
10. Bxc6 {[%clk 0:02:59.7]} 10... Bxc6 {[%clk 0:02:51]} 11. f5 {[%clk
0:03:00.1]} 11... Nd7 {[%clk 0:02:14.7]} 12. Bg5 {[%clk 0:02:25.5]} 12... f6
{[%clk 0:02:13.4]} 13. Bh6 {[%clk 0:01:09.1]} 13... exf5 {[%clk 0:02:04.8]} 14.
exf5 {[%clk 0:01:08.3]} 14... Ne5 {[%clk 0:02:05.3]} 15. Nxe5 {[%clk 0:01:07.3]}
15... dxe5 {[%clk 0:02:04.8]} 16. Kh1 {[%clk 0:01:01.3]} 16... Qd4 {[%clk
0:01:47.1]} 17. Ne4 {[%clk 0:01:00]} 17... g5 {[%clk 0:01:40]} 18. Bxg5 {[%clk
0:00:54.6]} 18... fxg5 {[%clk 0:01:36.2]} 19. Qxg5 {[%clk 0:00:55.5]} 19... Bxe4
{[%clk 0:00:49.1]} 20. dxe4 {[%clk 0:00:56.4]} 20... Qxe4 {[%clk 0:00:28.8]} 21.
f6 {[%clk 0:00:53.1]} 21... Qg6 {[%clk 0:00:28.6]} 22. Qxg6 {[%clk 0:00:45.9]}
22... hxg6 {[%clk 0:00:29.5]} 23. fxg7 {[%clk 0:00:46.4]} 23... Kxg7 {[%clk
0:00:30.4]} 24. Kg1 {[%clk 0:00:40.7]} 24... Rfe8 {[%clk 0:00:27.1]} 25. Rad1
{[%clk 0:00:38.3]} 25... Rad8 {[%clk 0:00:26.7]} 26. Rfe1 {[%clk 0:00:38.2]}
26... Kf6 {[%clk 0:00:23.6]} 27. Kf2 {[%clk 0:00:38.3]} 27... Ke6 {[%clk
0:00:20.2]} 28. Ke3 {[%clk 0:00:34.5]} 28... Rxd1 {[%clk 0:00:18.2]} 29. Rxd1
{[%clk 0:00:34.4]} 29... Rh8 {[%clk 0:00:19.1]} 30. h3 {[%clk 0:00:34.8]} 30...
Rh4 {[%clk 0:00:16.5]} 31. Rd8 {[%clk 0:00:34.1]} 31... Rh7 {[%clk 0:00:13]} 32.
Rg8 {[%clk 0:00:30.2]} 32... Kf6 {[%clk 0:00:09.9]} 33. c3 {[%clk 0:00:20.8]}
33... b6 {[%clk 0:00:10.2]} 34. Ke4 {[%clk 0:00:17.6]} 34... Rh4+ {[%clk
0:00:10]} 35. Kd5 {[%clk 0:00:18]} 35... Rh7 {[%clk 0:00:05]} 36. Rf8+ {[%clk
0:00:17.5]} 36... Kg5 {[%clk 0:00:03.6]} 37. Kxe5 {[%clk 0:00:16.5]} 37... Re7+
{[%clk 0:00:04.2]} 38. Kd5 {[%clk 0:00:10.4]} 38... Re2 {[%clk 0:00:05.1]} 39.
g4 {[%clk 0:00:05.4]} 39... Rxb2 {[%clk 0:00:04.4]} 40. a4 {[%clk 0:00:04.9]}
40... Rd2+ {[%clk 0:00:04.6]} 41. Kc6 {[%clk 0:00:04.8]} 41... Rc2 {[%clk
0:00:05]} 42. Kb7 {[%clk 0:00:04.8]} 42... Rxc3 {[%clk 0:00:05.3]} 43. Kxa7
{[%clk 0:00:05]} 43... Ra3 {[%clk 0:00:04]} 44. Kxb6 {[%clk 0:00:04.6]} 44...
Rxa4 {[%clk 0:00:04.3]} 45. Kxc5 {[%clk 0:00:04.9]} 45... Ra3 {[%clk 0:00:04.3]}
46. Rh8 {[%clk 0:00:03.6]} 46... Kf4 {[%clk 0:00:04.7]} 47. Kd5 {[%clk
0:00:03.6]} 47... Kg3 {[%clk 0:00:03.8]} 48. Rh6 {[%clk 0:00:03.8]} 48... g5
{[%clk 0:00:03.5]} 49. Rh5 {[%clk 0:00:03.7]} 49... Rb3 {[%clk 0:00:03]} 50. Ke5
{[%clk 0:00:01.8]} 50... Rb5+ {[%clk 0:00:03.2]} 51. Kf6 {[%clk 0:00:02.7]}
51... Kg2 {[%clk 0:00:03.5]} 52. Kg6 {[%clk 0:00:02.7]} 52... Rb6+ {[%clk
0:00:03.6]} 53. Kxg5 {[%clk 0:00:02.9]} 53... Kg3 {[%clk 0:00:04.5]} 54. Kf5
{[%clk 0:00:02.8]} 54... Rb5+ {[%clk 0:00:04.8]} 55. Kg6 {[%clk 0:00:03.2]}
55... Rb6+ {[%clk 0:00:05.3]} 56. Kf7 {[%clk 0:00:03.4]} 56... Rb7+ {[%clk
0:00:05.8]} 57. Ke6 {[%clk 0:00:04]} 57... Rb6+ {[%clk 0:00:06.3]} 58. Kd5
{[%clk 0:00:04.6]} 58... Rb5+ {[%clk 0:00:06.6]} 59. Kc6 {[%clk 0:00:05.2]}
59... Rb8 {[%clk 0:00:06.1]} 60. Rh7 {[%clk 0:00:05.5]} 60... Kf4 {[%clk
0:00:06.3]} 61. Kd6 {[%clk 0:00:05.6]} 61... Rb6+ {[%clk 0:00:06.1]} 62. Kc5
{[%clk 0:00:05.9]} 62... Ra6 {[%clk 0:00:06.3]} 63. Rf7+ {[%clk 0:00:06]} 63...
Kg3 {[%clk 0:00:06.3]} 64. Rh7 {[%clk 0:00:06.2]} 64... Ra5+ {[%clk 0:00:06]}
65. Kd4 {[%clk 0:00:06.3]} 65... Ra4+ {[%clk 0:00:06.4]} 66. Kc5 {[%clk
0:00:06.2]} 66... Ra5+ {[%clk 0:00:06.8]} 67. Kb6 {[%clk 0:00:06.7]} 67... Re5
{[%clk 0:00:06.2]} 68. Kc6 {[%clk 0:00:06.7]} 68... Ra5 {[%clk 0:00:05.7]} 69.
Kd6 {[%clk 0:00:06.6]} 69... Ra6+ {[%clk 0:00:06]} 70. Ke5 {[%clk 0:00:06.9]}
70... Ra5+ {[%clk 0:00:06.6]} 71. Ke4 {[%clk 0:00:06.8]} 71... Ra4+ {[%clk
0:00:07.1]} 72. Kd3 {[%clk 0:00:07.3]} 72... Ra3+ {[%clk 0:00:07.6]} 73. Kc2
{[%clk 0:00:07.8]} 73... Ra2+ {[%clk 0:00:07.5]} 74. Kb3 {[%clk 0:00:08.3]}
74... Ra6 {[%clk 0:00:07.1]} 75. g5 {[%clk 0:00:07.5]} 75... Kf4 {[%clk
0:00:04.3]} 76. h4 {[%clk 0:00:08]} 76... Kg4 {[%clk 0:00:04.8]} 77. Kc4 {[%clk
0:00:07.4]} 77... Ra4+ {[%clk 0:00:04.8]} 78. Kb5 {[%clk 0:00:07.4]} 78... Re4
{[%clk 0:00:04.2]} 79. Kc5 {[%clk 0:00:07.2]} 79... Ra4 {[%clk 0:00:04.2]} 80.
g6 {[%clk 0:00:07.1]} 80... Ra8 {[%clk 0:00:03.8]} 81. h5 {[%clk 0:00:06.6]}
81... Kg5 {[%clk 0:00:03.8]} 82. g7 {[%clk 0:00:05.8]} 82... Kf6 {[%clk
0:00:03.7]} 83. h6 {[%clk 0:00:05.8]} 83... Kf7 {[%clk 0:00:02.4]} 84. Rh8
{[%clk 0:00:05.6]} 84... Ra5+ {[%clk 0:00:02.7]} 85. Kb6 {[%clk 0:00:05.7]}
85... Rg5 {[%clk 0:00:03.6]} 86. Rf8+ {[%clk 0:00:05]} 1-0

[Event "Late-Titled-Tuesday-Blitz-June-18-2024"]
[Site "Chess.com"]
[Date "2024.06.18"]
[Round "3"]
[White "Mischuk_D"]
[Black "tgpgoat"]
[Result "1/2-1/2"]
[WhiteElo "2739"]
[BlackElo "2511"]
[TimeControl "180+1"]
[EndTime "14:32:10 PDT"]
[Termination "Game drawn by repetition"]

1. d4 {[%clk 0:03:00.9]} 1... Nf6 {[%clk 0:02:58.9]} 2. c4 {[%clk 0:03:00.6]}
2... c5 {[%clk 0:02:59.5]} 3. d5 {[%clk 0:03:00.3]} 3... b5 {[%clk 0:03:00.1]}
4. Nf3 {[%clk 0:02:57.9]} 4... bxc4 {[%clk 0:02:59.7]} 5. Nc3 {[%clk 0:02:57.2]}
5... d6 {[%clk 0:02:59.8]} 6. e4 {[%clk 0:02:56.9]} 6... g6 {[%clk 0:03:00.2]}
7. Bxc4 {[%clk 0:02:56.7]} 7... Bg7 {[%clk 0:03:00.7]} 8. h3 {[%clk 0:02:57]}
8... O-O {[%clk 0:03:01.2]} 9. O-O {[%clk 0:02:56.6]} 9... Ba6 {[%clk
0:03:01.1]} 10. Nb5 {[%clk 0:02:46.9]} 10... Nxe4 {[%clk 0:02:58.3]} 11. a4
{[%clk 0:02:47.4]} 11... Nd7 {[%clk 0:02:56.6]} 12. Re1 {[%clk 0:02:46.7]} 12...
Nef6 {[%clk 0:02:41.5]} 13. Nxd6 {[%clk 0:02:42.9]} 13... exd6 {[%clk
0:02:42.4]} 14. Bxa6 {[%clk 0:02:42.9]} 14... Rb8 {[%clk 0:02:37.7]} 15. Bb5
{[%clk 0:02:42.3]} 15... Re8 {[%clk 0:02:13]} 16. Rxe8+ {[%clk 0:02:38]} 16...
Nxe8 {[%clk 0:02:12.1]} 17. Rb1 {[%clk 0:02:29.1]} 17... Nc7 {[%clk 0:02:09.1]}
18. Bc6 {[%clk 0:02:29]} 18... Rb4 {[%clk 0:02:08.1]} 19. b3 {[%clk 0:02:23.8]}
19... Nb8 {[%clk 0:02:07.4]} 20. Bd2 {[%clk 0:02:22.6]} 20... Nxc6 {[%clk
0:02:06.8]} 21. dxc6 {[%clk 0:02:22.1]} 21... Rb6 {[%clk 0:02:06.5]} 22. b4
{[%clk 0:02:18]} 22... cxb4 {[%clk 0:01:59.5]} 23. a5 {[%clk 0:02:13.1]} 23...
Rxc6 {[%clk 0:01:58]} 24. Bxb4 {[%clk 0:02:13.4]} 24... d5 {[%clk 0:01:51.5]}
25. Qd3 {[%clk 0:02:09]} 25... Ne6 {[%clk 0:01:35.7]} 26. Bd2 {[%clk 0:02:07.9]}
26... h6 {[%clk 0:01:21.7]} 27. Qb5 {[%clk 0:02:01.3]} 27... Qd6 {[%clk
0:01:16.6]} 28. Qb8+ {[%clk 0:01:54.2]} 28... Qxb8 {[%clk 0:01:13.6]} 29. Rxb8+
{[%clk 0:01:53.4]} 29... Kh7 {[%clk 0:01:14.5]} 30. Rb7 {[%clk 0:01:53.8]} 30...
Rc7 {[%clk 0:01:13.8]} 31. a6 {[%clk 0:01:52.4]} 31... d4 {[%clk 0:01:08.5]} 32.
Ba5 {[%clk 0:01:46.6]} 32... Rc1+ {[%clk 0:01:06.5]} 33. Kh2 {[%clk 0:01:47.1]}
33... Ra1 {[%clk 0:01:05.9]} 34. Bd2 {[%clk 0:01:44.3]} 34... Rxa6 {[%clk
0:01:02.7]} 35. Rxf7 {[%clk 0:01:44.6]} 35... Ra2 {[%clk 0:00:51.3]} 36. Re7
{[%clk 0:01:40.9]} 36... Nc5 {[%clk 0:00:50.3]} 37. Bf4 {[%clk 0:01:39.9]} 37...
Kg8 {[%clk 0:00:45.4]} 38. Bd2 {[%clk 0:00:45.6]} 38... Nd3 {[%clk 0:00:34.6]}
39. Kg3 {[%clk 0:00:43.6]} 39... Ne5 {[%clk 0:00:19.7]} 40. Nxe5 {[%clk
0:00:39.6]} 40... Rxd2 {[%clk 0:00:16.4]} 41. Nxg6 {[%clk 0:00:37.4]} 41... a5
{[%clk 0:00:16.8]} 42. Ra7 {[%clk 0:00:36.9]} 42... Ra2 {[%clk 0:00:17.1]} 43.
Nf4 {[%clk 0:00:37.3]} 43... Be5 {[%clk 0:00:16.4]} 44. Kg4 {[%clk 0:00:36.4]}
44... Bxf4 {[%clk 0:00:13.2]} 45. Kxf4 {[%clk 0:00:36.4]} 45... Rxf2+ {[%clk
0:00:13.9]} 46. Kg3 {[%clk 0:00:36.7]} 46... Ra2 {[%clk 0:00:13.6]} 47. Kf3
{[%clk 0:00:37.1]} 47... Kf8 {[%clk 0:00:12.7]} 48. g4 {[%clk 0:00:36.8]} 48...
Ra3+ {[%clk 0:00:12.5]} 49. Ke4 {[%clk 0:00:37.1]} 49... Rxh3 {[%clk 0:00:13]}
50. Rxa5 {[%clk 0:00:35.8]} 50... Rh4 {[%clk 0:00:13.5]} 51. Kf5 {[%clk
0:00:34.7]} 51... d3 {[%clk 0:00:12.5]} 52. Rd5 {[%clk 0:00:34.6]} 52... Rh3
{[%clk 0:00:12.5]} 53. Kg6 {[%clk 0:00:34.7]} 53... Ke7 {[%clk 0:00:12.8]} 54.
Kf5 {[%clk 0:00:33.6]} 54... h5 {[%clk 0:00:11.3]} 55. g5 {[%clk 0:00:33.8]}
55... Rf3+ {[%clk 0:00:11]} 56. Ke4 {[%clk 0:00:33.2]} 56... Rg3 {[%clk
0:00:11.3]} 57. Kf4 {[%clk 0:00:33.4]} 57... Rg1 {[%clk 0:00:11.7]} 58. Rxd3
{[%clk 0:00:32.7]} 58... h4 {[%clk 0:00:11.6]} 59. Rh3 {[%clk 0:00:32]} 59...
Kf7 {[%clk 0:00:10.2]} 60. Rxh4 {[%clk 0:00:31.9]} 60... Kg6 {[%clk 0:00:10.9]}
61. Rh6+ {[%clk 0:00:32.1]} 61... Kg7 {[%clk 0:00:11.6]} 62. Ra6 {[%clk
0:00:32.3]} 62... Rf1+ {[%clk 0:00:11.9]} 63. Kg4 {[%clk 0:00:32.6]} 63... Rg1+
{[%clk 0:00:12.4]} 64. Kf4 {[%clk 0:00:32.6]} 64... Rf1+ {[%clk 0:00:12.8]} 65.
Ke3 {[%clk 0:00:32.8]} 65... Rg1 {[%clk 0:00:12.9]} 66. Ra5 {[%clk 0:00:30.9]}
66... Kg6 {[%clk 0:00:11.4]} 67. Kf4 {[%clk 0:00:31.2]} 67... Rf1+ {[%clk
0:00:11.4]} 68. Ke4 {[%clk 0:00:31.5]} 68... Re1+ {[%clk 0:00:10.9]} 69. Kf3
{[%clk 0:00:31.3]} 69... Rf1+ {[%clk 0:00:10.5]} 70. Kg2 {[%clk 0:00:31.4]}
70... Rf5 {[%clk 0:00:10.6]} 71. Ra6+ {[%clk 0:00:31.8]} 71... Kxg5 {[%clk
0:00:10.9]} 72. Kg3 {[%clk 0:00:32.7]} 72... Rf6 {[%clk 0:00:11.3]} 73. Ra5+
{[%clk 0:00:30.8]} 73... Rf5 {[%clk 0:00:11.6]} 74. Ra8 {[%clk 0:00:31.1]} 74...
Rf6 {[%clk 0:00:12]} 75. Rg8+ {[%clk 0:00:30.4]} 75... Kf5 {[%clk 0:00:12.4]}
76. Kf3 {[%clk 0:00:30]} 76... Ke6+ {[%clk 0:00:12.4]} 77. Ke4 {[%clk
0:00:30.1]} 77... Rf7 {[%clk 0:00:12.9]} 78. Ra8 {[%clk 0:00:27.9]} 78... Kf6
{[%clk 0:00:13.3]} 79. Kf4 {[%clk 0:00:27.6]} 79... Ke6+ {[%clk 0:00:13.5]} 80.
Ke4 {[%clk 0:00:27.5]} 80... Kf6 {[%clk 0:00:14.1]} 81. Ra6+ {[%clk 0:00:26.7]}
81... Ke7 {[%clk 0:00:14.2]} 82. Ke5 {[%clk 0:00:26.9]} 82... Kf8 {[%clk
0:00:13.6]} 83. Ra1 {[%clk 0:00:24.4]} 83... Re7+ {[%clk 0:00:13.4]} 84. Kf6
{[%clk 0:00:24.6]} 84... Rf7+ {[%clk 0:00:13.9]} 85. Ke6 {[%clk 0:00:25.5]}
85... Re7+ {[%clk 0:00:14.2]} 86. Kd6 {[%clk 0:00:26.4]} 86... Rf7 {[%clk
0:00:14.4]} 87. Rg1 {[%clk 0:00:26.2]} 87... Rg7 {[%clk 0:00:14.2]} 88. Rf1+
{[%clk 0:00:26.3]} 88... Rf7 {[%clk 0:00:14.8]} 89. Rh1 {[%clk 0:00:27]} 89...
Kg7 {[%clk 0:00:14.6]} 90. Ke5 {[%clk 0:00:26.5]} 90... Re7+ {[%clk 0:00:14.6]}
91. Kf5 {[%clk 0:00:26.8]} 91... Rf7+ {[%clk 0:00:15.1]} 92. Kg5 {[%clk
0:00:27.2]} 92... Ra7 {[%clk 0:00:15.2]} 93. Rb1 {[%clk 0:00:26.7]} 93... Ra5+
{[%clk 0:00:15.6]} 94. Kf4 {[%clk 0:00:27]} 94... Kf6 {[%clk 0:00:15.9]} 95.
Rb6+ {[%clk 0:00:26.8]} 95... Ke7 {[%clk 0:00:16.3]} 96. Rb4 {[%clk 0:00:26.7]}
96... Kd6 {[%clk 0:00:16.6]} 97. Kg4 {[%clk 0:00:25.8]} 97... Kc5 {[%clk
0:00:16.8]} 98. Rb8 {[%clk 0:00:25.6]} 98... Rb5 {[%clk 0:00:16.7]} 99. Rc8+
{[%clk 0:00:25.2]} 99... Kb4 {[%clk 0:00:17.6]} 100. Kf4 {[%clk 0:00:25.1]}
100... Rc5 {[%clk 0:00:18]} 101. Rd8 {[%clk 0:00:25.2]} 101... Rc4+ {[%clk
0:00:18.4]} 102. Ke3 {[%clk 0:00:25.3]} 102... Rc5 {[%clk 0:00:19.3]} 103. Kd3
{[%clk 0:00:25]} 103... Kb5 {[%clk 0:00:19.5]} 104. Rb8+ {[%clk 0:00:24.2]}
104... Kc6 {[%clk 0:00:19.9]} 105. Kd4 {[%clk 0:00:24.6]} 105... Rd5+ {[%clk
0:00:20]} 106. Kc4 {[%clk 0:00:25]} 106... Rc5+ {[%clk 0:00:20.6]} 107. Kb4
{[%clk 0:00:25.3]} 107... Rh5 {[%clk 0:00:20.8]} 108. Rc8+ {[%clk 0:00:24.8]}
108... Kd7 {[%clk 0:00:20.9]} 109. Rc4 {[%clk 0:00:25.7]} 109... Rh1 {[%clk
0:00:20.8]} 110. Kc5 {[%clk 0:00:25.5]} 110... Rh5+ {[%clk 0:00:20.7]} 111. Kb4
{[%clk 0:00:25.5]} 111... Rh1 {[%clk 0:00:21.3]} 112. Kc5 {[%clk 0:00:25.2]}
112... Rh5+ {[%clk 0:00:21.8]} 113. Kb4 {[%clk 0:00:25.3]} 1/2-1/2

[Event "Late-Titled-Tuesday-Blitz-June-18-2024"]
[Site "Chess.com"]
[Date "2024.06.18"]
[Round "3"]
[White "MKlose11"]
[Black "matagordo"]
[Result "1/2-1/2"]
[WhiteElo "2568"]
[BlackElo "2387"]
[TimeControl "180+1"]
[EndTime "14:32:44 PDT"]
[Termination "Game drawn by 50-move rule"]

1. e4 {[%clk 0:03:00.9]} 1... e6 {[%clk 0:02:59.5]} 2. Nf3 {[%clk 0:02:56.8]}
2... d5 {[%clk 0:02:59.5]} 3. e5 {[%clk 0:02:57.4]} 3... c5 {[%clk 0:02:59.6]}
4. b4 {[%clk 0:02:57.9]} 4... b6 {[%clk 0:03:00.3]} 5. bxc5 {[%clk 0:02:55.7]}
5... bxc5 {[%clk 0:03:01.2]} 6. c3 {[%clk 0:02:56]} 6... Qd7 {[%clk 0:02:55.9]}
7. Be2 {[%clk 0:02:54.7]} 7... Ba6 {[%clk 0:02:55.6]} 8. d3 {[%clk 0:02:55.1]}
8... Ne7 {[%clk 0:02:43.5]} 9. O-O {[%clk 0:02:54]} 9... Ng6 {[%clk 0:02:43.4]}
10. Re1 {[%clk 0:02:51.9]} 10... Be7 {[%clk 0:02:40.3]} 11. Bf1 {[%clk
0:02:52.2]} 11... O-O {[%clk 0:02:40.3]} 12. Ba3 {[%clk 0:02:49.8]} 12... Rc8
{[%clk 0:02:22.7]} 13. Nbd2 {[%clk 0:02:47.4]} 13... f6 {[%clk 0:02:06.8]} 14.
d4 {[%clk 0:02:22.5]} 14... Bxf1 {[%clk 0:02:05.7]} 15. Nxf1 {[%clk 0:02:21.1]}
15... fxe5 {[%clk 0:01:54.8]} 16. Nxe5 {[%clk 0:02:17.9]} 16... Nxe5 {[%clk
0:01:53.5]} 17. dxe5 {[%clk 0:02:16.7]} 17... Nc6 {[%clk 0:01:52.8]} 18. Ng3
{[%clk 0:02:07.8]} 18... Na5 {[%clk 0:01:48.1]} 19. Qg4 {[%clk 0:02:00.5]} 19...
Nc4 {[%clk 0:01:45.6]} 20. Nh5 {[%clk 0:01:56.5]} 20... Bd8 {[%clk 0:01:40.3]}
21. Bc1 {[%clk 0:01:53.6]} 21... Qf7 {[%clk 0:01:34.8]} 22. Nf4 {[%clk
0:01:45.6]} 22... Rc6 {[%clk 0:01:31]} 23. Rb1 {[%clk 0:01:43.9]} 23... Bb6
{[%clk 0:01:23.7]} 24. h4 {[%clk 0:01:36.2]} 24... Rf8 {[%clk 0:01:23.8]} 25. h5
{[%clk 0:01:34.4]} 25... Qf5 {[%clk 0:01:19.7]} 26. Qxf5 {[%clk 0:01:15.7]}
26... Rxf5 {[%clk 0:01:20.6]} 27. h6 {[%clk 0:01:10.1]} 27... Rxe5 {[%clk
0:01:15.5]} 28. Rxe5 {[%clk 0:01:09]} 28... Nxe5 {[%clk 0:01:16.4]} 29. hxg7
{[%clk 0:01:09.6]} 29... Kxg7 {[%clk 0:01:12.9]} 30. Be3 {[%clk 0:01:03.4]}
30... Nc4 {[%clk 0:01:11]} 31. Re1 {[%clk 0:01:02.5]} 31... Kf7 {[%clk
0:00:57.7]} 32. Bc1 {[%clk 0:01:00.2]} 32... Ba5 {[%clk 0:00:56.9]} 33. Rd1
{[%clk 0:00:45.5]} 33... Bxc3 {[%clk 0:00:54.8]} 34. Rd3 {[%clk 0:00:45.7]}
34... Be5 {[%clk 0:00:53.1]} 35. Ne2 {[%clk 0:00:36.1]} 35... Rb6 {[%clk
0:00:40.1]} 36. g4 {[%clk 0:00:35.4]} 36... Rb1 {[%clk 0:00:39.3]} 37. Kg2
{[%clk 0:00:35.8]} 37... Bd6 {[%clk 0:00:28.9]} 38. Rh3 {[%clk 0:00:33.7]} 38...
Kg7 {[%clk 0:00:22.1]} 39. Bh6+ {[%clk 0:00:31.4]} 39... Kg6 {[%clk 0:00:21.4]}
40. Bf4 {[%clk 0:00:28]} 40... Bf8 {[%clk 0:00:09.6]} 41. Bc7 {[%clk 0:00:15.5]}
41... e5 {[%clk 0:00:09.3]} 42. Nc3 {[%clk 0:00:14]} 42... Rb7 {[%clk
0:00:07.3]} 43. Nxd5 {[%clk 0:00:14.2]} 43... Nb6 {[%clk 0:00:01.9]} 44. Bxb6
{[%clk 0:00:10.5]} 44... axb6 {[%clk 0:00:02.8]} 45. a4 {[%clk 0:00:10.8]} 45...
b5 {[%clk 0:00:02.3]} 46. Rf3 {[%clk 0:00:07.8]} 46... bxa4 {[%clk 0:00:02.1]}
47. Rxf8 {[%clk 0:00:07.7]} 47... Ra7 {[%clk 0:00:02.1]} 48. Nc3 {[%clk
0:00:03.6]} 48... a3 {[%clk 0:00:02.2]} 49. Na2 {[%clk 0:00:04.2]} 49... c4
{[%clk 0:00:01]} 50. Rf5 {[%clk 0:00:02]} 50... c3 {[%clk 0:00:01]} 51. Rxe5
{[%clk 0:00:02.5]} 51... c2 {[%clk 0:00:01.3]} 52. Rc5 {[%clk 0:00:03.1]} 52...
c1=Q {[%clk 0:00:02]} 53. Rxc1 {[%clk 0:00:03.4]} 53... Kg5 {[%clk 0:00:02.7]}
54. Rc6 {[%clk 0:00:04]} 54... Kxg4 {[%clk 0:00:03]} 55. Rc4+ {[%clk 0:00:04.9]}
55... Kg5 {[%clk 0:00:03.5]} 56. Rc3 {[%clk 0:00:05.8]} 56... Kg6 {[%clk
0:00:03.8]} 57. Rb3 {[%clk 0:00:06.3]} 57... h5 {[%clk 0:00:04.2]} 58. Rc3
{[%clk 0:00:06.8]} 58... Ra5 {[%clk 0:00:04.8]} 59. Kg3 {[%clk 0:00:07]} 59...
Kg5 {[%clk 0:00:05.3]} 60. Rc2 {[%clk 0:00:06.8]} 60... Kg6 {[%clk 0:00:05.8]}
61. Kg2 {[%clk 0:00:07.2]} 61... Kg5 {[%clk 0:00:06.5]} 62. Nc3 {[%clk
0:00:07.4]} 62... Ra7 {[%clk 0:00:06.8]} 63. Ra2 {[%clk 0:00:07.6]} 63... Kg4
{[%clk 0:00:07]} 64. Nb5 {[%clk 0:00:07.2]} 64... Ra4 {[%clk 0:00:06.6]} 65.
Nxa3 {[%clk 0:00:07]} 65... h4 {[%clk 0:00:06.3]} 66. Ra1 {[%clk 0:00:07.5]}
66... h3+ {[%clk 0:00:06.6]} 67. Kg1 {[%clk 0:00:07]} 67... Kf3 {[%clk
0:00:05.7]} 68. Nc2 {[%clk 0:00:04.2]} 68... Rg4+ {[%clk 0:00:06]} 69. Kh2
{[%clk 0:00:03.9]} 69... Kxf2 {[%clk 0:00:05.3]} 70. Kxh3 {[%clk 0:00:04.1]}
70... Rc4 {[%clk 0:00:04.3]} 71. Na3 {[%clk 0:00:03.4]} 71... Rc8 {[%clk
0:00:04.4]} 72. Kg4 {[%clk 0:00:03.8]} 72... Rg8+ {[%clk 0:00:04.7]} 73. Kf4
{[%clk 0:00:04.2]} 73... Rf8+ {[%clk 0:00:05.4]} 74. Ke4 {[%clk 0:00:05.1]}
74... Re8+ {[%clk 0:00:06.1]} 75. Kd4 {[%clk 0:00:05.7]} 75... Rd8+ {[%clk
0:00:06.8]} 76. Kc3 {[%clk 0:00:05.6]} 76... Ke2 {[%clk 0:00:07.2]} 77. Nc4
{[%clk 0:00:06]} 77... Rc8 {[%clk 0:00:07.2]} 78. Ra2+ {[%clk 0:00:05.9]} 78...
Kf3 {[%clk 0:00:07.3]} 79. Rc2 {[%clk 0:00:05.3]} 79... Ke4 {[%clk 0:00:07.3]}
80. Kb4 {[%clk 0:00:05.1]} 80... Rb8+ {[%clk 0:00:07]} 81. Kc3 {[%clk
0:00:05.3]} 81... Rc8 {[%clk 0:00:06.5]} 82. Re2+ {[%clk 0:00:05.6]} 82... Kf3
{[%clk 0:00:06.5]} 83. Re7 {[%clk 0:00:05.4]} 83... Ra8 {[%clk 0:00:03.7]} 84.
Nb2 {[%clk 0:00:03.9]} 84... Rc8+ {[%clk 0:00:03.4]} 85. Kd4 {[%clk 0:00:04.2]}
85... Rd8+ {[%clk 0:00:03.9]} 86. Kc3 {[%clk 0:00:04.7]} 86... Rc8+ {[%clk
0:00:04.1]} 87. Kd2 {[%clk 0:00:05.1]} 87... Rd8+ {[%clk 0:00:04.5]} 88. Nd3
{[%clk 0:00:05.8]} 88... Kg4 {[%clk 0:00:03.5]} 89. Rf7 {[%clk 0:00:05.8]} 89...
Kg5 {[%clk 0:00:03.8]} 90. Ke3 {[%clk 0:00:05.8]} 90... Re8+ {[%clk 0:00:04.1]}
91. Kd4 {[%clk 0:00:05.5]} 91... Rd8+ {[%clk 0:00:04.3]} 92. Ke4 {[%clk
0:00:04.9]} 92... Re8+ {[%clk 0:00:04.7]} 93. Ne5 {[%clk 0:00:05.4]} 93... Ra8
{[%clk 0:00:04.5]} 94. Rf5+ {[%clk 0:00:04.2]} 94... Kh6 {[%clk 0:00:04.4]} 95.
Rf1 {[%clk 0:00:03.9]} 95... Kg7 {[%clk 0:00:03.3]} 96. Kd5 {[%clk 0:00:04.3]}
96... Ra5+ {[%clk 0:00:03.5]} 97. Ke6 {[%clk 0:00:04.1]} 97... Ra6+ {[%clk
0:00:04.2]} 98. Ke7 {[%clk 0:00:04.4]} 98... Ra7+ {[%clk 0:00:04.5]} 99. Nd7
{[%clk 0:00:04.9]} 99... Ra2 {[%clk 0:00:04.1]} 100. Rg1+ {[%clk 0:00:05.2]}
100... Kh6 {[%clk 0:00:04.3]} 101. Ne5 {[%clk 0:00:03.5]} 101... Kh5 {[%clk
0:00:03.2]} 102. Kf6 {[%clk 0:00:03.6]} 102... Rf2+ {[%clk 0:00:03.1]} 103. Ke6
{[%clk 0:00:04]} 103... Ra2 {[%clk 0:00:03.5]} 104. Nd3 {[%clk 0:00:04]} 104...
Ra6+ {[%clk 0:00:03.2]} 105. Kf5 {[%clk 0:00:04.4]} 105... Ra5+ {[%clk
0:00:03.8]} 106. Ne5 {[%clk 0:00:03.9]} 106... Kh6 {[%clk 0:00:03.4]} 107. Rh1+
{[%clk 0:00:03.7]} 107... Kg7 {[%clk 0:00:04]} 108. Ke6 {[%clk 0:00:03.7]}
108... Ra6+ {[%clk 0:00:04.1]} 109. Kf5 {[%clk 0:00:04.2]} 109... Ra5 {[%clk
0:00:04.4]} 110. Re1 {[%clk 0:00:04.5]} 110... Rb5 {[%clk 0:00:03.9]} 111. Kg5
{[%clk 0:00:04.5]} 111... Ra5 {[%clk 0:00:04]} 112. Kf5 {[%clk 0:00:04.6]}
112... Rb5 {[%clk 0:00:04]} 113. Rg1+ {[%clk 0:00:04.5]} 113... Kf8 {[%clk
0:00:03.9]} 114. Kf6 {[%clk 0:00:03.1]} 114... Rb6+ {[%clk 0:00:04]} 115. Kf5
{[%clk 0:00:03.6]} 115... Rb5 {[%clk 0:00:04.6]} 116. Rg6 {[%clk 0:00:03.8]}
116... Rb1 {[%clk 0:00:03.6]} 117. Ra6 {[%clk 0:00:04.7]} 117... Rf1+ {[%clk
0:00:03.8]} 118. Ke6 {[%clk 0:00:04.9]} 118... Kg7 {[%clk 0:00:03.3]} 119. Ng4
{[%clk 0:00:04.5]} 119... Re1+ {[%clk 0:00:03.2]} 120. Kf5 {[%clk 0:00:04.4]}
1/2-1/2